bitfinex/quotes_SOLUSD_20250815
["timestamp","ask_amount","ask_price","bid_price","bid_amount"]
[1755277040576,0.77,185.8,185.79,48.08854455]
[1755277040777,0.06,185.8,185.79,48.08854455]
[1755277045152,0.06,185.8,185.79,39.3]
[1755277045354,0.77,185.8,185.79,48.08854455]
[1755277045663,0.77,185.8,185.79,39.3]
[1755277046075,0.77,185.8,185.79,48.08854455]
[1755277046967,0.06,185.8,185.79,39.3]
[1755277047172,0.06,185.8,185.79,48.08854455]
[1755277047373,0.06,185.8,185.79,48.77854455]
[1755277047579,0.06,185.8,185.79,48.08854455]
[1755277047884,0.06,185.8,185.79,54.16096556]
[1755277048581,0.06,185.8,185.79,44.68242101]
[1755277048877,0.06,185.8,185.79,48.08854455]
[1755277049483,0.06,185.8,185.79,39.3]
[1755277049664,0.06,185.8,185.79,48.08854455]
[1755277049867,0.77,185.8,185.79,39.3]
[1755277050184,0.77,185.8,185.79,48.08854455]
[1755277051274,0.06,185.8,185.79,48.08854455]
[1755277051465,0.06,185.8,185.79,39.3]
[1755277051786,0.06,185.8,185.79,48.08854455]
[1755277052883,0.06,185.8,185.79,44.8796381]
[1755277053086,0.06,185.8,185.79,50.26205911]
[1755277053697,0.06,185.8,185.79,56.53169721]
[1755277053866,0.06,185.8,185.79,57.06993931]
[1755277054871,0.06,185.82,185.81,26.0]
[1755277055095,0.06,185.82,185.81,70.8596381]
[1755277055305,0.06,185.82,185.81,71.5496381]
[1755277055604,0.06,185.82,185.81,76.93147976]
[1755277055991,0.06,185.82,185.81,76.24147976]
[1755277056398,0.06,185.82,185.81,50.24147976]
[1755277056799,0.06,185.82,185.81,39.28]
[1755277057009,0.06,185.82,185.81,44.8596381]
[1755277057010,0.77,185.82,185.81,44.8596381]
[1755277057711,0.06,185.82,185.81,50.24147976]
[1755277057891,0.06,185.82,185.81,50.93147976]
[1755277058730,0.06,185.82,185.81,54.13770515]
[1755277062710,0.06,185.83,185.81,54.13770515]
[1755277062711,0.06,185.83,185.81,69.24392072]
[1755277063008,0.06,185.83,185.82,9.47586349]
[1755277064015,0.06,185.83,185.82,14.85741552]
[1755277065113,0.06,185.84,185.82,14.85741552]
[1755277065300,0.06,185.85,185.84,15.10621557]
[1755277065506,0.06,185.85,185.84,23.89207906]
[1755277066022,0.75,185.85,185.84,48.04586349]
[1755277066321,0.75,185.85,185.84,53.42683636]
[1755277066322,0.06,185.85,185.84,53.42683636]
[1755277069210,0.06,185.85,185.84,54.14683636]
[1755277069410,0.06,185.85,185.84,69.25305193]
[1755277069622,0.06,185.86,185.85,49.89207906]
[1755277069914,0.06,185.86,185.85,50.61207906]
[1755277070322,0.06,185.88,185.85,24.61207906]
[1755277070528,0.06,185.89,185.88,20.4860305]
[1755277070529,1e-08,185.89,185.88,20.4860305]
[1755277070711,0.06,185.91,185.9,41.10621557]
[1755277071028,0.1,185.94,185.93,26.0]
[1755277071233,0.1,185.94,185.93,74.04586349]
[1755277071524,0.1,185.94,185.93,75.30370031]
[1755277072622,0.1,185.94,185.93,80.14423169]
[1755277074319,0.1,185.94,185.93,40.88423169]
[1755277074518,0.1,185.94,185.93,40.16423169]
[1755277074699,0.1,185.94,185.93,79.40423169]
[1755277074899,0.79,185.94,185.93,65.24]
[1755277075129,0.79,185.94,185.93,74.02586349]
[1755277075324,0.1,185.94,185.93,79.40423169]
[1755277075828,0.1,185.94,185.93,40.16423169]
[1755277076025,0.1,185.94,185.93,79.40423169]
[1755277076243,0.79,185.94,185.93,79.40423169]
[1755277076611,0.1,185.94,185.93,79.40423169]
[1755277077114,0.1,185.94,185.93,70.6183682]
[1755277078328,0.1,185.94,185.93,71.3383682]
[1755277078509,0.1,185.94,185.93,70.6183682]
[1755277080643,0.1,185.94,185.93,71.3383682]
[1755277080925,0.06,185.98,185.97,26.0]
[1755277081138,0.1,186.02,185.97,74.00586349]
[1755277081341,0.1,186.02,185.99,8.78586349]
[1755277081637,0.1,186.02,185.99,48.00586349]
[1755277082017,0.1,186.02,186.01,26.0]
[1755277082337,0.79,186.05,186.01,82.77172698]
[1755277082338,0.1,186.05,186.01,82.77172698]
[1755277082513,0.1,186.05,186.04,8.78586349]
[1755277082708,0.1,186.05,186.04,53.36105162]
[1755277084637,0.79,186.05,186.04,53.36105162]
[1755277085332,0.79,186.05,186.04,47.98586349]
[1755277086820,0.79,186.05,186.04,39.2]
[1755277087017,0.79,186.05,186.04,47.98586349]
[1755277087229,0.1,186.05,186.04,47.98586349]
[1755277087920,0.79,186.05,186.04,47.98586349]
[1755277088103,0.79,186.05,186.04,39.2]
[1755277088307,0.79,186.05,186.04,47.98586349]
[1755277089213,0.79,186.05,186.04,8.78586349]
[1755277089415,0.79,186.05,186.04,47.96586349]
[1755277089822,0.1,186.05,186.04,47.96586349]
[1755277090436,0.79,186.05,186.04,47.96586349]
[1755277091113,0.79,186.05,186.04,39.18]
[1755277091528,0.79,186.05,186.04,47.96586349]
[1755277092134,0.79,186.05,186.04,39.18]
[1755277092749,0.79,186.05,186.04,47.96586349]
[1755277094732,145.63154705,186.05,185.99,0.03]
[1755277094931,6.25657752,186.04,185.99,0.03]
[1755277095122,0.69,186.04,186.0,39.18]
[1755277095323,6.06523423,186.04,186.0,39.18]
[1755277095523,0.69,186.03,186.0,44.74657752]
[1755277095750,0.69,186.02,186.0,44.74657752]
[1755277096144,5.37523423,186.04,186.0,44.74657752]
[1755277096329,0.69,186.01,186.0,44.74657752]
[1755277096843,0.69,186.01,186.0,39.18]
[1755277101048,5.37518813,186.04,186.0,47.95312148]
[1755277101254,0.69,186.03,186.0,47.95312148]
[1755277101550,0.69,186.02,186.0,47.95312148]
[1755277101962,140.06494555,186.05,186.01,8.77312148]
[1755277102146,0.69,186.04,186.02,39.16]
[1755277102338,0.69,186.03,186.02,39.16]
[1755277103531,6.06547707,186.03,186.02,39.16]
[1755277106843,18.43323307,186.03,186.02,39.16]
[1755277109149,22.43027151,186.03,186.0,0.03]
[1755277109349,4.28463452,186.02,186.0,0.03]
[1755277109557,146.267756,186.01,186.0,0.03]
[1755277110131,146.957756,186.01,186.0,0.03]
[1755277110751,138.18463452,186.01,186.0,0.03]
[1755277110953,146.957756,186.01,186.0,0.03]
[1755277111284,152.33381105,186.01,186.0,0.03]
[1755277112029,137.49463452,186.01,186.0,0.72]
[1755277112357,133.9,186.01,186.0,48.63312148]
[1755277112554,133.9,186.01,186.0,39.17]
[1755277114457,137.90964555,186.01,186.0,39.17]
[1755277115360,142.20896994,186.01,186.0,39.17]
[1755277115536,141.51896994,186.01,186.0,39.17]
[1755277115737,137.90964555,186.01,186.0,39.86]
[1755277116243,133.9,186.01,186.0,39.86]
[1755277116444,141.52288669,186.01,186.0,39.86]
[1755277116938,133.9,186.01,186.0,39.86]
[1755277117531,133.9,186.01,186.0,39.17]
[1755277118346,134.59,186.01,186.0,39.17]
[1755277118657,133.9,186.01,186.0,39.17]
[1755277118865,0.06,186.04,186.03,41.10621557]
[1755277119043,15.679005,186.06,186.05,5.56872932]
[1755277119242,0.06,186.07,186.06,5.37461034]
[1755277119464,0.06,186.07,186.06,10.94333966]
[1755277123151,0.06,186.07,186.06,5.37461034]
[1755277123338,0.06,186.07,186.06,10.94333966]
[1755277139688,0.06,186.08,186.07,26.0]
[1755277139877,0.06,186.08,186.07,70.64872932]
[1755277141089,0.77,186.08,186.07,31.56872932]
[1755277141317,0.77,186.08,186.07,70.64872932]
[1755277141490,0.77,186.08,186.07,44.64872932]
[1755277142465,0.77,186.08,186.07,39.08]
[1755277142664,0.77,186.08,186.07,44.64872932]
[1755277142878,0.77,186.08,186.07,50.02305081]
[1755277145191,11.71276199,186.08,186.07,38.36]
[1755277145877,19.31966881,186.08,186.04,0.03]
[1755277146077,8.31715752,186.07,186.04,39.09]
[1755277146288,5.56872932,186.05,186.04,0.03]
[1755277146598,15.10621557,186.04,186.0,39.09]
[1755277146894,5.37576604,186.02,186.0,39.09]
[1755277147077,5.56872932,186.02,186.01,0.03]
[1755277147483,20.67494489,186.02,186.01,0.03]
[1755277147787,50.98888628,186.02,186.01,0.03]
[1755277147994,54.99431464,186.02,186.01,0.03]
[1755277148190,49.42558532,186.02,186.01,0.03]
[1755277148505,54.99431464,186.02,186.01,0.03]
[1755277148885,60.37008068,186.02,186.01,0.03]
[1755277150603,60.36645253,186.02,186.01,0.03]
[1755277150811,62.52145053,186.02,186.01,0.03]
[1755277153509,62.51838186,186.02,186.01,0.03]
[1755277154405,0.71,186.05,186.01,5.59872932]
[1755277154904,0.71,186.04,186.01,5.59872932]
[1755277155691,5.37490117,186.05,186.01,5.59872932]
[1755277155898,6.03490117,186.05,186.01,5.59872932]
[1755277156196,0.66,186.04,186.01,5.59872932]
[1755277156399,139.27468631,186.06,186.02,5.56872932]
[1755277156607,0.66,186.05,186.01,6.25872932]
[1755277156810,0.66,186.05,186.02,5.56872932]
[1755277156985,133.9,186.06,186.03,5.56872932]
[1755277157408,133.9,186.06,186.04,5.56872932]
[1755277157713,133.9,186.06,186.03,5.56872932]
[1755277158010,134.56,186.06,186.02,5.56872932]
[1755277159115,133.9,186.06,186.02,5.56872932]
[1755277159287,0.66,186.05,186.02,5.56872932]
[1755277159488,0.66,186.05,186.03,5.56872932]
[1755277160804,0.66,186.04,186.01,0.03]
[1755277161007,0.66,186.04,186.02,5.56872932]
[1755277161385,0.66,186.04,186.01,0.03]
[1755277161585,0.66,186.04,186.02,5.56872932]
[1755277161793,0.66,186.03,186.01,5.59872932]
[1755277162008,5.37490393,186.05,186.01,5.59872932]
[1755277162210,0.66,186.04,186.01,5.59872932]
[1755277162410,5.56872932,186.03,186.01,0.03]
[1755277162617,139.46872932,186.03,186.01,0.03]
[1755277162815,0.66,186.02,186.01,0.03]
[1755277163190,6.22872932,186.02,186.01,0.03]
[1755277163514,26.71071093,186.02,186.01,0.03]
[1755277163887,30.7105555,186.02,186.01,0.03]
[1755277164211,41.10621557,186.01,186.0,0.03]
[1755277164512,54.93480389,186.01,186.0,0.03]
[1755277165390,60.31085894,186.01,186.0,0.03]
[1755277165796,99.37085894,186.01,186.0,0.03]
[1755277167113,73.37085894,186.01,185.99,0.03]
[1755277167318,26.0,185.99,185.98,0.03]
[1755277167616,54.27137742,185.99,185.98,0.03]
[1755277167818,93.33137742,185.99,185.98,0.03]
[1755277168124,93.99137742,185.99,185.98,0.03]
[1755277168423,93.99136015,185.99,185.98,0.03]
[1755277168612,93.99136015,185.99,185.96,0.03]
[1755277168613,15.10621557,185.98,185.96,0.03]
[1755277168815,188.17136015,185.97,185.96,0.03]
[1755277169022,233.24857152,185.97,185.96,0.03]
[1755277169227,99.34857152,185.97,185.96,0.03]
[1755277170422,41.10621557,185.96,185.94,0.03]
[1755277170596,20.67494489,185.95,185.94,0.03]
[1755277170799,64.39478946,185.95,185.94,0.03]
[1755277170999,30.71257918,185.95,185.94,0.03]
[1755277171209,30.05257918,185.95,185.94,0.03]
[1755277171722,5.37778972,185.95,185.94,0.03]
[1755277171946,20.48349216,185.97,185.94,0.69]
[1755277172106,5.37727659,185.97,185.94,0.69]
[1755277172429,20.48349216,185.97,185.94,0.69]
[1755277173129,20.48349216,185.97,185.94,0.03]
[1755277174535,26.05222148,185.97,185.94,0.03]
[1755277174715,6.22872932,185.96,185.94,0.03]
[1755277175342,6.22872932,185.95,185.94,0.03]
[1755277175648,10.21839392,185.95,185.94,0.03]
[1755277176143,15.59618364,185.95,185.94,0.03]
[1755277177621,30.70239921,185.95,185.94,0.03]
[1755277177934,34.29313337,185.95,185.94,0.03]
[1755277178139,34.29327123,185.95,185.94,0.03]
[1755277180740,15.10621557,185.91,185.9,0.03]
[1755277181034,24.66474735,185.91,185.9,0.03]
[1755277181241,25.32474735,185.91,185.9,0.03]
[1755277182122,30.04369415,185.91,185.9,0.03]
[1755277183173,30.70369415,185.91,185.9,0.03]
[1755277184040,28.72653411,185.91,185.9,0.03]
[1755277184241,34.29526343,185.91,185.9,0.03]
[1755277184445,175.00621557,185.89,185.87,0.2]
[1755277184652,13.15010106,185.88,185.87,0.2]
[1755277184845,28.91631663,185.88,185.87,0.2]
[1755277185051,5.56872932,185.83,185.82,0.2]
[1755277185370,63.70474735,185.83,185.82,1e-08]
[1755277185675,67.99595224,185.83,185.82,1e-08]
[1755277186251,73.37721468,185.83,185.82,1e-08]
[1755277186451,73.37463303,185.83,185.82,1e-08]
[1755277189265,73.373921,185.83,185.82,1e-08]
[1755277189937,72.673921,185.83,185.82,1e-08]
[1755277190363,33.633921,185.83,185.82,1e-08]
[1755277190551,30.04271611,185.83,185.82,1e-08]
[1755277190749,30.74271611,185.83,185.82,1e-08]
[1755277190972,34.33042997,185.83,185.82,1e-08]
[1755277192062,33.63042997,185.83,185.82,1e-08]
[1755277192363,56.04271611,185.83,185.82,1e-08]
[1755277192740,50.47398679,185.83,185.82,1e-08]
[1755277192942,56.04271611,185.83,185.82,1e-08]
[1755277194349,40.93650054,185.83,185.82,0.69000001]
[1755277194671,36.94999176,185.83,185.82,1e-08]
[1755277194878,40.93115641,185.83,185.82,1e-08]
[1755277195243,40.93098623,185.83,185.82,1e-08]
[1755277196851,35.36225691,185.83,185.82,1e-08]
[1755277197048,40.93098623,185.83,185.82,1e-08]
[1755277198352,56.0372018,185.83,185.82,1e-08]
[1755277198552,56.7372018,185.83,185.82,1e-08]
[1755277198857,95.7772018,185.83,185.82,1e-08]
[1755277200168,56.0372018,185.83,185.82,1e-08]
[1755277200369,29.98099447,185.83,185.82,0.69000001]
[1755277200579,3.98099447,185.83,185.82,0.69000001]
[1755277200955,10.24972379,185.83,185.82,1e-08]
[1755277201261,25.35593936,185.83,185.82,1e-08]
[1755277201449,24.65593936,185.83,185.82,1e-08]
[1755277201657,56.7372018,185.83,185.82,1e-08]
[1755277201847,69.7772018,185.83,185.82,1e-08]
[1755277202052,15.10621557,185.8,185.78,0.03]
[1755277202248,15.10621557,185.78,185.76,0.03]
[1755277202483,58.10721004,185.77,185.76,0.03]
[1755277202774,45.08721004,185.77,185.76,0.03]
[1755277202986,50.65593936,185.77,185.76,0.03]
[1755277203690,56.03893984,185.77,185.76,0.03]
[1755277204209,10.95136127,185.79,185.76,0.72]
[1755277204487,31.38213825,185.8,185.76,0.72]
[1755277204652,3.9825384,185.79,185.77,0.69]
[1755277204853,0.06,185.83,185.78,6.25872932]
[1755277205056,0.06,185.83,185.8,5.56872932]
[1755277205269,15.10621557,185.82,185.77,0.69]
[1755277205475,5.56872932,185.8,185.76,0.03]
[1755277205693,5.38242101,185.79,185.76,0.03]
[1755277206192,5.38242101,185.79,185.76,0.72]
[1755277207092,26.0,185.81,185.77,0.69]
[1755277207280,26.0,185.81,185.78,0.69]
[1755277207774,0.06,185.83,185.79,6.25872932]
[1755277207965,4.04969958,185.83,185.8,6.25872932]
[1755277208168,5.44126457,185.83,185.8,0.69]
[1755277208687,15.16621557,185.83,185.81,0.69]
[1755277208867,20.54753538,185.83,185.8,5.56872932]
[1755277209190,6.26872932,185.82,185.76,0.03]
[1755277209493,3.99319905,185.81,185.79,5.56872932]
[1755277209794,46.54753538,185.83,185.78,5.56872932]
[1755277209966,3.99338608,185.82,185.78,5.56872932]
[1755277210166,10.2621154,185.82,185.76,0.03]
[1755277210370,3.99480762,185.81,185.76,5.59872932]
[1755277210576,9.86504022,185.82,185.76,6.28872932]
[1755277210888,3.99494634,185.81,185.76,9.51513798]
[1755277211093,3.99494634,185.81,185.77,0.69]
[1755277211298,5.38213132,185.8,185.77,0.69]
[1755277211676,8.97911564,185.81,185.77,9.48513798]
[1755277211894,5.38189642,185.81,185.77,9.48513798]
[1755277212093,5.38189642,185.81,185.76,8.82513798]
[1755277212392,15.10621557,185.79,185.76,0.72]
[1755277212576,23.90135355,185.77,185.76,0.03]
[1755277212782,27.8992406,185.77,185.76,0.03]
[1755277213190,3.99788705,185.77,185.76,0.03]
[1755277213381,3.99788705,185.77,185.76,0.72]
[1755277213584,20.48921605,185.77,185.76,0.03]
[1755277213777,37.58339212,185.77,185.76,0.03]
[1755277213977,33.58461176,185.77,185.76,0.03]
[1755277214597,37.5839732,185.77,185.76,0.03]
[1755277214774,29.98435403,185.77,185.76,0.03]
[1755277216175,29.28435403,185.77,185.76,0.03]
[1755277216385,20.48921605,185.77,185.76,0.03]
[1755277217477,133.9,185.78,185.76,0.73]
[1755277217790,133.9,185.78,185.76,0.03]
[1755277218188,142.69513798,185.78,185.76,0.03]
[1755277218390,148.07789335,185.78,185.76,0.03]
[1755277218776,24.55135355,185.77,185.76,0.03]
[1755277218998,15.10621557,185.77,185.76,0.03]
[1755277219203,41.10621557,185.77,185.76,0.03]
[1755277219502,55.28435403,185.77,185.76,0.03]
[1755277219701,31.38300048,185.77,185.76,0.03]
[1755277220011,29.28377456,185.79,185.76,0.03]
[1755277220304,20.48863658,185.79,185.76,0.03]
[1755277220477,8.79513798,185.78,185.76,0.03]
[1755277220679,23.90135355,185.77,185.76,0.03]
[1755277220880,28.56038636,185.77,185.76,0.03]
[1755277221502,28.56038636,185.77,185.75,0.2]
[1755277221503,5.38329026,185.76,185.75,0.2]
[1755277221697,57.83746105,185.76,185.75,0.2]
[1755277222016,61.84879038,185.76,185.75,0.2]
[1755277222312,76.30500595,185.76,185.75,0.2]
[1755277222513,76.95500595,185.76,185.75,0.2]
[1755277223794,41.10621557,185.75,185.74,0.03]
[1755277223979,57.92171569,185.75,185.74,0.03]
[1755277224183,41.10621557,185.73,185.72,0.03]
[1755277224412,57.92171569,185.73,185.72,0.03]
[1755277224717,58.57171569,185.73,185.72,0.03]
[1755277225286,58.57171569,185.73,185.7,0.03]
[1755277225494,14.17987762,185.71,185.7,0.03]
[1755277225692,22.20023976,185.71,185.7,0.03]
[1755277226217,13.40510178,185.71,185.7,0.03]
[1755277226391,20.49095521,185.71,185.7,0.03]
[1755277226587,29.93609319,185.71,185.7,0.03]
[1755277226804,37.96683397,185.71,185.7,0.03]
[1755277227119,33.9512465,185.71,185.7,0.03]
[1755277227308,37.96862945,185.71,185.7,0.03]
[1755277227607,33.9512465,185.71,185.7,0.03]
[1755277227982,41.58226328,185.71,185.7,0.03]
[1755277228403,45.8615549,185.71,185.7,0.03]
[1755277229909,45.86414168,185.71,185.7,0.03]
[1755277230305,49.90135355,185.69,185.68,0.03]
[1755277230512,100.55011042,185.69,185.68,0.03]
[1755277230817,52.75497244,185.69,185.68,0.03]
[1755277231018,61.55011042,185.69,185.68,0.03]
[1755277231384,52.75497244,185.69,185.68,0.03]
[1755277231584,67.58543003,185.69,185.68,0.03]
[1755277231790,41.10621557,185.66,185.65,0.2]
[1755277232105,57.53385981,185.66,185.65,0.2]
[1755277232487,58.18385981,185.66,185.65,0.2]
[1755277232711,54.33014381,185.66,185.65,0.2]
[1755277232916,33.63250626,185.66,185.65,0.9]
[1755277233086,30.01774009,185.66,185.65,0.9]
[1755277233284,4.01774009,185.66,185.65,0.9]
[1755277234105,5.38560965,185.68,185.65,0.9]
[1755277234310,5.38560965,185.68,185.66,0.7]
[1755277234896,44.34190824,185.72,185.66,5.59142198]
[1755277235214,4.01033845,185.71,185.67,6.29142198]
[1755277235424,9.60176043,185.71,185.67,0.7]
[1755277235722,5.38531961,185.69,185.67,0.7]
[1755277235915,20.49095521,185.71,185.67,5.59142198]
[1755277236223,20.49095521,185.71,185.68,0.7]
[1755277236627,133.9,185.72,185.69,6.29142198]
[1755277236994,133.9,185.72,185.7,0.7]
[1755277237300,15.10621557,185.75,185.7,5.59142198]
[1755277237517,15.10621557,185.75,185.67,5.38589618]
[1755277237518,5.44275033,185.78,185.74,5.59142198]
[1755277237719,0.06,185.78,185.76,5.59142198]
[1755277237897,4.0677786,185.78,185.76,5.59142198]
[1755277238091,0.06,185.78,185.76,6.29142198]
[1755277238602,0.06,185.78,185.77,5.59142198]
[1755277238921,0.06,185.78,185.77,6.29142198]
[1755277239110,0.06,185.78,185.77,5.59142198]
[1755277239297,0.06,185.78,185.77,6.29142198]
[1755277239814,0.06,185.78,185.77,11.67442246]
[1755277240724,0.06,185.78,185.77,14.87321496]
[1755277242741,0.06,185.78,185.74,38.96]
[1755277242935,0.06,185.78,185.77,8.79021448]
[1755277245441,0.06,185.78,185.74,39.66]
[1755277245442,0.06,185.78,185.76,8.79021448]
[1755277245627,0.06,185.78,185.73,38.96]
[1755277245833,0.66,185.77,185.73,47.75021448]
[1755277246038,6.04321806,185.77,185.73,47.75021448]
[1755277246459,0.06,185.78,185.76,8.79021448]
[1755277246630,0.06,185.78,185.77,8.79021448]
[1755277247030,0.06,185.78,185.77,9.50021448]
[1755277247827,0.06,185.78,185.77,18.29042896]
[1755277248030,0.06,185.78,185.77,23.67342944]
[1755277248233,0.06,185.78,185.77,49.67342944]
[1755277248559,0.06,185.8,185.79,26.0]
[1755277248739,0.06,185.8,185.79,73.75021448]
[1755277248931,0.06,185.8,185.79,74.46021448]
[1755277249426,0.06,185.8,185.79,65.67]
[1755277249923,0.06,185.8,185.79,71.05242101]
[1755277250751,0.06,185.8,185.79,38.94]
[1755277250927,0.06,185.8,185.79,47.73021448]
[1755277251129,0.06,185.8,185.71,10.0]
[1755277251130,0.72,185.8,185.74,0.71]
[1755277251348,0.72,185.8,185.77,8.79021448]
[1755277251963,0.06,185.8,185.79,8.79021448]
[1755277252243,0.06,185.8,185.78,8.79021448]
[1755277252653,5.44217559,185.8,185.75,39.65]
[1755277252838,5.44217559,185.8,185.77,8.79021448]
[1755277253038,5.44217559,185.8,185.78,8.79021448]
[1755277253742,0.06,185.8,185.78,8.79021448]
[1755277255345,0.66,185.79,185.75,38.94]
[1755277255544,0.66,185.78,185.75,8.79021448]
[1755277255765,0.66,185.77,185.75,47.23021448]
[1755277255933,0.66,185.78,185.75,38.94]
[1755277256434,0.66,185.78,185.75,47.73021448]
[1755277256748,143.41021448,185.8,185.75,47.73021448]
[1755277256942,0.66,185.79,185.75,47.73021448]
[1755277257155,5.38271073,185.78,185.75,47.73021448]
[1755277257454,6.04271073,185.78,185.75,47.73021448]
[1755277258435,5.38271073,185.78,185.75,38.94]
[1755277258651,0.66,185.77,185.73,8.79021448]
[1755277258837,0.66,185.77,185.74,38.92]
[1755277259044,5.38329026,185.76,185.74,47.71021448]
[1755277259830,5.38329026,185.76,185.74,38.92]
[1755277260346,133.96,185.8,185.75,8.79021448]
[1755277260679,133.9,185.79,185.75,0.71]
[1755277260955,0.06,185.8,185.78,14.17273519]
[1755277261155,0.06,185.8,185.79,38.92]
[1755277261862,0.06,185.8,185.79,47.71021448]
[1755277262531,0.06,185.8,185.79,9.50021448]
[1755277262728,0.06,185.8,185.79,48.42021448]
[1755277262927,0.06,185.8,185.79,53.80263549]
[1755277263230,0.06,185.8,185.79,54.34087759]
[1755277263441,0.06,185.8,185.79,53.80263549]
[1755277268268,0.06,185.8,185.79,53.09263549]
[1755277268650,0.06,185.8,185.79,49.87970387]
[1755277269041,0.06,185.8,185.79,44.49728286]
[1755277269960,0.06,185.8,185.79,49.87970387]
[1755277270552,0.06,185.8,185.79,50.58970387]
[1755277270766,0.06,185.8,185.79,49.87970387]
[1755277275053,0.06,185.8,185.79,38.92]
[1755277275247,0.06,185.8,185.79,44.47728286]
[1755277275770,0.77,185.8,185.79,44.47728286]
[1755277275944,0.77,185.8,185.77,5.57728286]
[1755277276145,0.77,185.8,185.78,38.9]
[1755277276349,0.06,185.8,185.79,5.57728286]
[1755277277956,0.77,185.8,185.79,5.57728286]
[1755277278277,0.77,185.8,185.79,44.47728286]
[1755277279465,6.1521611,185.8,185.79,38.9]
[1755277280252,10.16490935,185.8,185.79,44.47728286]
[1755277280766,10.16490935,185.8,185.79,38.9]
[1755277280964,15.74219221,185.8,185.72,5.41440361]
[1755277281173,10.30003111,185.79,185.74,5.57728286]
[1755277281483,0.71,185.78,185.76,5.57728286]
[1755277281680,0.71,185.78,185.77,38.88]
[1755277281885,13.21251345,185.78,185.73,5.57728286]
[1755277282059,7.63523059,185.77,185.74,38.88]
[1755277282254,7.63523059,185.77,185.75,38.88]
[1755277282255,4.01831542,185.76,185.75,38.88]
[1755277282474,13.73065529,185.76,185.75,38.88]
[1755277282674,13.02065529,185.76,185.75,38.88]
[1755277282859,13.73065529,185.76,185.75,38.88]
[1755277283488,10.11160568,185.76,185.75,38.88]
[1755277283672,13.73065529,185.76,185.75,38.88]
[1755277284566,13.73237717,185.76,185.75,38.88]
[1755277284777,13.02237717,185.76,185.75,38.88]
[1755277285264,13.73237717,185.76,185.75,38.88]
[1755277285457,10.11332756,185.76,185.75,38.88]
[1755277286683,144.01332756,185.76,185.75,38.88]
[1755277288988,144.12895099,185.76,185.75,38.88]
[1755277289363,140.10891369,185.76,185.75,38.88]
[1755277290684,144.1255691,185.76,185.75,38.88]
[1755277291391,140.10891369,185.76,185.75,38.88]
[1755277291994,134.72562343,185.76,185.75,38.88]
[1755277292197,134.01562343,185.76,185.75,38.88]
[1755277293194,134.01562343,185.76,185.75,44.45728286]
[1755277293399,134.01562343,185.76,185.75,38.88]
[1755277296991,134.72562343,185.76,185.75,38.88]
[1755277297167,140.10891369,185.76,185.75,38.88]
[1755277297368,144.12528028,185.76,185.75,38.88]
[1755277297816,149.70256314,185.76,185.75,38.88]
[1755277297970,153.31768066,185.76,185.72,0.03]
[1755277298172,153.31768066,185.76,185.73,38.88]
[1755277298173,10.30364945,185.75,185.73,38.88]
[1755277298389,4.72674546,185.74,185.73,38.88]
[1755277298589,0.71,185.74,185.73,38.88]
[1755277299030,0.11562343,185.76,185.73,45.17728286]
[1755277299294,0.11562343,185.76,185.75,5.57728286]
[1755277299497,0.11562343,185.76,185.75,44.43728286]
[1755277301599,10.22450427,185.76,185.72,0.03]
[1755277301896,10.30296137,185.75,185.73,38.86]
[1755277302105,4.01567851,185.74,185.73,38.86]
[1755277302401,4.72567851,185.74,185.73,38.86]
[1755277302572,10.30296137,185.74,185.72,0.03]